[Event "FIDE Grand Swiss 2023"]
[Site "Villa Marina, Douglas, Isle of Man, Isle Of Man"]
[Date "2023.10.27"]
[Round "3.27"]
[White "Svane, Frederik"]
[Black "Artemiev, Vladislav"]
[Result "0-1"]
[TimeControl "40/90 + 30 + 30s/move"]
[WhiteFideId "12923044"]
[BlackFideId "24101605"]
[WhiteElo "2626"]
[BlackElo "2697"]

1. e4 {[%clk 01:40:56]} {[%emt 00:00:04]} c5 {[%clk 01:40:35]} {[%emt
00:00:26]} 2. Nf3 {[%clk 01:41:20]} {[%emt 00:00:05]} d6 {[%clk 01:40:40]}
{[%emt 00:00:25]} 3. d4 {[%clk 01:41:46]} {[%emt 00:00:05]} cxd4 {[%clk
01:40:33]} {[%emt 00:00:37]} 4. Nxd4 {[%clk 01:42:10]} {[%emt 00:00:05]} Nf6
{[%clk 01:40:31]} {[%emt 00:00:32]} 5. Nc3 {[%clk 01:42:36]} {[%emt 00:00:04]}
a6 {[%clk 01:40:01]} {[%emt 00:01:01]} 6. Bd3 {[%clk 01:43:02]} {[%emt
00:00:04]} Bd7 {[%clk 01:19:34]} {[%emt 00:20:56]} 7. f4 {[%clk 01:33:10]}
{[%emt 00:10:23]} Nc6 {[%clk 01:12:55]} {[%emt 00:07:09]} 8. Nxc6 {[%clk
01:21:30]} {[%emt 00:12:11]} Bxc6 {[%clk 01:10:43]} {[%emt 00:02:40]} 9. e5
{[%clk 01:08:41]} {[%emt 00:13:19]} Nd5 {[%clk 01:07:01]} {[%emt 00:04:13]} 10.
e6 {[%clk 01:05:19]} {[%emt 00:03:52]} fxe6 {[%clk 01:05:40]} {[%emt 00:01:51]}
11. Nxd5 {[%clk 01:00:32]} {[%emt 00:05:17]} Bxd5 {[%clk 01:05:40]} {[%emt
00:00:30]} 12. Qe2 {[%clk 01:00:54]} {[%emt 00:00:08]} g6 {[%clk 01:02:08]}
{[%emt 00:04:01]} 13. c4 {[%clk 00:49:44]} {[%emt 00:11:41]} Bc6 {[%clk
00:56:21]} {[%emt 00:06:18]} 14. Qxe6 {[%clk 00:47:34]} {[%emt 00:02:40]} Qb6
{[%clk 00:39:44]} {[%emt 00:17:06]} 15. Be4 {[%clk 00:33:55]} {[%emt 00:14:09]}
Bg7 {[%clk 00:31:57]} {[%emt 00:08:17]} 16. Rb1 {[%clk 00:29:53]} {[%emt
00:04:32]} Bxe4 {[%clk 00:23:06]} {[%emt 00:09:21]} 17. Qxe4 {[%clk 00:30:19]}
{[%emt 00:00:04]} Rc8 {[%clk 00:19:45]} {[%emt 00:03:51]} 18. Bd2 {[%clk
00:18:32]} {[%emt 00:12:18]} O-O {[%clk 00:16:56]} {[%emt 00:03:18]} 19. b3
{[%clk 00:15:31]} {[%emt 00:03:31]} e5 {[%clk 00:16:09]} {[%emt 00:01:17]} 20.
Be3 {[%clk 00:11:45]} {[%emt 00:04:16]} Qa5+ {[%clk 00:15:19]} {[%emt
00:01:20]} 21. Bd2 {[%clk 00:12:05]} {[%emt 00:00:10]} Qxa2 {[%clk 00:15:11]}
{[%emt 00:00:39]} 22. Qd5+ {[%clk 00:07:55]} {[%emt 00:04:39]} Kh8 {[%clk
00:14:59]} {[%emt 00:00:43]} 23. O-O {[%clk 00:08:19]} {[%emt 00:00:06]} exf4
{[%clk 00:12:45]} {[%emt 00:02:44]} 24. Qd3 {[%clk 00:08:37]} {[%emt 00:00:12]}
Be5 {[%clk 00:04:26]} {[%emt 00:08:49]} 25. Rf2 {[%clk 00:08:33]} {[%emt
00:00:34]} Qa3 {[%clk 00:04:44]} {[%emt 00:00:12]} 26. Rbf1 {[%clk 00:08:26]}
{[%emt 00:00:36]} Qc5 {[%clk 00:02:42]} {[%emt 00:02:32]} 27. Kh1 {[%clk
00:08:16]} {[%emt 00:00:40]} Qd4 {[%clk 00:00:34]} {[%emt 00:02:39]} 28. Qxd4
{[%clk 00:07:35]} {[%emt 00:01:11]} Bxd4 {[%clk 00:01:00]} {[%emt 00:00:04]} 29.
Rxf4 {[%clk 00:08:01]} {[%emt 00:00:04]} Rxf4 {[%clk 00:01:25]} {[%emt
00:00:05]} 30. Rxf4 {[%clk 00:03:39]} {[%emt 00:04:52]} Bg7 {[%clk 00:01:04]}
{[%emt 00:00:51]} 31. Re4 {[%clk 00:02:12]} {[%emt 00:01:57]} Be5 {[%clk
00:00:57]} {[%emt 00:00:37]} 32. g4 {[%clk 00:01:22]} {[%emt 00:01:20]} Kg7
{[%clk 00:00:55]} {[%emt 00:00:32]} 33. Kg2 {[%clk 00:01:44]} {[%emt 00:00:08]}
Kf6 {[%clk 00:00:48]} {[%emt 00:00:37]} 34. g5+ {[%clk 00:00:59]} {[%emt
00:01:14]} Ke6 {[%clk 00:00:34]} {[%emt 00:00:45]} 35. Rh4 {[%clk 00:01:25]}
{[%emt 00:00:04]} d5 {[%clk 00:00:32]} {[%emt 00:00:32]} 36. cxd5+ {[%clk
00:00:34]} {[%emt 00:01:21]} Kxd5 {[%clk 00:01:01]} {[%emt 00:00:01]} 37. Kf3
{[%clk 00:00:40]} {[%emt 00:00:24]} Rc7 {[%clk 00:00:53]} {[%emt 00:00:38]} 38.
Ke2 {[%clk 00:00:39]} {[%emt 00:00:31]} Ke6 {[%clk 00:00:40]} {[%emt 00:00:43]}
39. Kd3 {[%clk 00:00:34]} {[%emt 00:00:35]} Kf5 {[%clk 00:00:58]} {[%emt
00:00:12]} 40. h3 {[%clk 00:00:35]} {[%emt 00:00:29]} b5 {[%clk 00:00:39]}
{[%emt 00:00:49]} 41. b4 {[%clk 00:47:06]} {[%emt 00:03:59]} Re7 {[%clk
00:45:37]} {[%emt 00:05:32]} 42. Be3 {[%clk 00:45:35]} {[%emt 00:02:01]} Rd7+
{[%emt 00:02:40]} 43. Ke2 {[%clk 00:46:01]} Bc3 {[%clk 00:36:30]} {[%emt
00:07:31]} 44. Rf4+ {[%clk 00:46:12]} {[%emt 00:00:19]} Ke5 {[%clk 00:30:54]}
{[%emt 00:06:06]} 45. h4 {[%clk 00:39:34]} {[%emt 00:07:08]} Bd2 {[%clk
00:16:38]} {[%emt 00:14:45]} 46. Rf6 {[%clk 00:22:31]} {[%emt 00:17:34]} Bxe3
{[%clk 00:09:54]} {[%emt 00:07:14]} 47. Kxe3 {[%clk 00:22:55]} {[%emt
00:00:06]} Rd4 {[%clk 00:10:19]} {[%emt 00:00:05]} 48. h5 {[%clk 00:23:20]}
{[%emt 00:00:05]} gxh5 {[%clk 00:09:58]} {[%emt 00:00:51]} 49. Rxa6 {[%clk
00:22:25]} {[%emt 00:01:25]} Rxb4 {[%clk 00:09:40]} {[%emt 00:00:48]} 50. Rh6
{[%clk 00:22:03]} {[%emt 00:00:52]} h4 {[%clk 00:09:26]} {[%emt 00:00:44]} 51.
Rxh7 {[%clk 00:22:20]} {[%emt 00:00:12]} Kf5 {[%clk 00:09:34]} {[%emt
00:00:22]} 52. Rg7 {[%clk 00:20:47]} {[%emt 00:02:04]} h3 {[%clk 00:07:58]}
{[%emt 00:02:05]} 53. Kd4 {[%clk 00:14:29]} {[%emt 00:06:19]} 0-1

[Event "FIDE Grand Swiss 2023"]
[Site "Villa Marina, Douglas, Isle of Man, Isle Of Man"]
[Date "2023.10.27"]
[Round "3.39"]
[White "Harikrishna, Pentala"]
[Black "Karthikeyan, Murali"]
[Result "1/2-1/2"]
[TimeControl "40/90 + 30 + 30s/move"]
[WhiteFideId "5007003"]
[BlackFideId "5074452"]
[WhiteElo "2716"]
[BlackElo "2611"]

1. d4 {[%clk 01:40:45]} {[%emt 00:00:14]} Nf6 {[%clk 01:40:51]} {[%emt
00:00:10]} 2. c4 {[%clk 01:41:09]} {[%emt 00:00:05]} e6 {[%clk 01:41:09]}
{[%emt 00:00:12]} 3. Nc3 {[%clk 01:41:34]} {[%emt 00:00:05]} Bb4 {[%clk
01:41:33]} {[%emt 00:00:06]} 4. e3 {[%clk 01:41:57]} {[%emt 00:00:06]} O-O
{[%clk 01:41:57]} {[%emt 00:00:07]} 5. Bd3 {[%clk 01:42:23]} {[%emt 00:00:04]}
d5 {[%clk 01:42:20]} {[%emt 00:00:07]} 6. cxd5 {[%clk 01:42:49]} {[%emt
00:00:05]} exd5 {[%clk 01:42:43]} {[%emt 00:00:07]} 7. Nge2 {[%clk 01:43:13]}
{[%emt 00:00:05]} Bd6 {[%clk 01:42:53]} {[%emt 00:00:20]} 8. O-O {[%clk
01:42:17]} {[%emt 00:01:25]} Re8 {[%clk 01:33:33]} {[%emt 00:09:51]} 9. Ng3
{[%clk 01:39:20]} {[%emt 00:03:27]} c5 {[%clk 01:08:04]} {[%emt 00:26:00]} 10.
dxc5 {[%clk 01:00:46]} {[%emt 00:39:03]} Bxc5 {[%clk 01:08:05]} {[%emt
00:00:29]} 11. e4 {[%clk 00:54:05]} {[%emt 00:07:11]} dxe4 {[%clk 00:39:54]}
{[%emt 00:28:41]} 12. Ngxe4 {[%clk 00:51:19]} {[%emt 00:03:16]} Nxe4 {[%clk
00:40:00]} {[%emt 00:00:24]} 13. Nxe4 {[%clk 00:50:53]} {[%emt 00:00:56]} Be7
{[%clk 00:40:07]} {[%emt 00:00:23]} 14. Nc3 {[%clk 00:49:34]} {[%emt 00:01:48]}
Nc6 {[%clk 00:38:22]} {[%emt 00:02:16]} 15. Bf4 {[%clk 00:46:48]} {[%emt
00:03:16]} Be6 {[%clk 00:32:40]} {[%emt 00:06:12]} 16. Qf3 {[%clk 00:45:01]}
{[%emt 00:02:16]} Qb6 {[%clk 00:23:21]} {[%emt 00:09:50]} 17. Nb5 {[%clk
00:40:52]} {[%emt 00:04:39]} Nd4 {[%clk 00:20:59]} {[%emt 00:02:52]} 18. Nxd4
{[%clk 00:40:55]} {[%emt 00:00:27]} Qxd4 {[%clk 00:21:27]} {[%emt 00:00:02]} 19.
b3 {[%clk 00:40:01]} {[%emt 00:01:24]} g5 {[%clk 00:11:05]} {[%emt 00:10:53]}
20. Bg3 {[%clk 00:38:56]} {[%emt 00:01:34]} Bf6 {[%clk 00:06:46]} {[%emt
00:04:50]} 21. Bc4 {[%clk 00:32:02]} {[%emt 00:07:23]} Bxc4 {[%clk 00:06:44]}
{[%emt 00:00:33]} 22. bxc4 {[%clk 00:32:16]} {[%emt 00:00:15]} Kg7 {[%clk
00:06:45]} {[%emt 00:00:29]} 23. Rac1 {[%clk 00:29:41]} {[%emt 00:03:05]} b6
{[%clk 00:06:24]} {[%emt 00:00:52]} 24. h3 {[%clk 00:23:04]} {[%emt 00:07:06]}
Rac8 {[%clk 00:05:28]} {[%emt 00:01:26]} 25. Qb7 {[%clk 00:20:34]} {[%emt
00:02:59]} Rxc4 {[%clk 00:04:57]} {[%emt 00:01:03]} 26. Rcd1 {[%clk 00:17:35]}
{[%emt 00:03:27]} Qe4 {[%clk 00:04:32]} {[%emt 00:00:55]} 27. Qxa7 {[%clk
00:17:57]} {[%emt 00:00:08]} Ra8 {[%clk 00:01:49]} {[%emt 00:03:13]} 28. Qxb6
{[%clk 00:17:46]} {[%emt 00:00:42]} Rxa2 {[%clk 00:01:30]} {[%emt 00:00:49]} 29.
Rde1 {[%clk 00:11:43]} {[%emt 00:06:32]} Qc6 {[%clk 00:00:48]} {[%emt
00:01:12]} 30. Qxc6 {[%clk 00:07:52]} {[%emt 00:04:22]} Rxc6 {[%clk 00:01:14]}
{[%emt 00:00:05]} 31. Be5 {[%clk 00:08:17]} {[%emt 00:00:04]} 1/2-1/2